bitfinex-derivatives/quotes_BTCF0:USTF0_20250106
["timestamp","ask_amount","ask_price","bid_price","bid_amount"]
[1736130364791,0.47999847,98887.0,98886.0,0.047518]
[1736130365386,0.47999847,98887.0,98886.0,0.046518]
[1736130367290,0.47999847,98887.0,98886.0,0.407318]
[1736130369696,0.47999847,98887.0,98886.0,0.046518]
[1736130371590,0.47999847,98887.0,98886.0,0.001]
[1736130371789,0.47999847,98887.0,98874.0,0.53926992]
[1736130371988,0.288618,98886.0,98874.0,0.54962964]
[1736130372488,0.3608,98878.0,98874.0,0.18882964]
[1736130372791,0.2422,98877.0,98866.0,0.22435312]
[1736130372987,0.2422,98877.0,98874.0,0.002]
[1736130373187,0.2422,98877.0,98866.0,0.22435312]
[1736130373782,0.3608,98867.0,98855.0,0.29909483]
[1736130373989,0.3608,98867.0,98853.0,0.23862358]
[1736130373990,0.3608,98857.0,98853.0,0.23862358]
[1736130374189,0.2632,98856.0,98853.0,0.23862358]
[1736130375097,0.2632,98856.0,98855.0,0.045533]
[1736130375283,0.3608,98867.0,98866.0,0.005]
[1736130375488,0.1205151,98872.0,98866.0,0.005]
[1736130376401,0.2577,98871.0,98864.0,0.045528]
[1736130376786,0.2577,98871.0,98860.0,0.09824727]
[1736130377585,0.2577,98871.0,98866.0,0.001]
[1736130377991,0.2577,98871.0,98869.0,0.045526]
[1736130378890,0.2597,98871.0,98869.0,0.045526]
[1736130379091,0.2637,98871.0,98869.0,0.045526]
[1736130379493,0.2577,98871.0,98869.0,0.045526]
[1736130379699,0.2687,98871.0,98869.0,0.045526]
[1736130381000,0.011,98871.0,98869.0,0.045526]
[1736130381493,0.011,98871.0,98864.0,0.01010606]
[1736130381798,0.5117,98870.0,98862.0,0.045529]
[1736130382105,0.3608,98869.0,98848.0,0.3608]
[1736130382304,0.045535,98851.0,98848.0,0.3608]
[1736130382595,0.2498,98850.0,98848.0,0.3608]
[1736130383400,0.6227,98849.0,98841.0,0.29909483]
[1736130383589,0.045538,98843.0,98841.0,0.29909483]
[1736130383993,0.3608,98846.0,98825.0,0.045546]
[1736130383994,0.045541,98836.0,98825.0,0.045546]
[1736130384193,0.3608,98832.0,98826.0,0.045545]
[1736130384494,0.3608,98832.0,98823.0,0.30947874]
[1736130384694,0.3608,98832.0,98823.0,0.29909483]
[1736130385805,0.3608,98832.0,98822.0,0.01009563]
[1736130385995,0.3608,98832.0,98831.0,0.045544]
[1736130386195,0.045539,98841.0,98831.0,0.045544]
[1736130386795,0.3608,98846.0,98835.0,0.045541]
[1736130387495,0.406337,98846.0,98835.0,0.045541]
[1736130387900,0.045538,98844.0,98835.0,0.045541]
[1736130388301,0.045538,98844.0,98835.0,0.046541]
[1736130388501,0.3608,98846.0,98835.0,0.046541]
[1736130388700,0.045538,98843.0,98835.0,0.048541]
[1736130389003,0.045538,98843.0,98835.0,0.047541]
[1736130389205,0.045538,98843.0,98835.0,0.045541]
[1736130389604,0.04554,98840.0,98828.0,0.045545]
[1736130389800,0.04554,98839.0,98828.0,0.045545]
[1736130390109,0.3608,98835.0,98820.0,0.045549]
[1736130390310,0.045544,98831.0,98822.0,0.045548]
[1736130391104,0.045544,98831.0,98806.0,0.3608]
[1736130391105,0.045549,98819.0,98808.0,0.045554]
[1736130391303,0.3608,98823.0,98812.0,0.045552]
[1736130392103,0.3608,98823.0,98822.0,0.001]
[1736130392498,0.045546,98826.0,98822.0,0.001]
[1736130392704,0.045546,98826.0,98815.0,0.045551]
[1736130392910,0.001,98823.0,98812.0,0.004]
[1736130393609,0.001,98823.0,98813.0,0.045552]
[1736130394401,0.045551,98816.0,98812.0,0.002]
[1736130394601,0.3608,98822.0,98812.0,0.002]
[1736130394910,0.045547,98823.0,98811.0,0.045552]
[1736130395207,0.045545,98829.0,98815.0,0.045551]
[1736130395709,0.3608,98835.0,98823.0,0.045547]
[1736130396003,0.3608,98835.0,98825.0,0.045546]
[1736130396205,0.3608,98835.0,98815.0,0.002]
[1736130396509,0.3608,98825.0,98815.0,0.002]
[1736130396709,0.2534,98824.0,98815.0,0.002]
[1736130397311,0.04555,98817.0,98815.0,0.002]
[1736130397509,0.04555,98817.0,98815.0,0.003]
[1736130397708,0.3608,98816.0,98815.0,0.003]
[1736130398009,0.3608,98816.0,98794.0,0.00011516]
[1736130398213,0.045558,98800.0,98794.0,0.00011516]
[1736130398403,0.09824727,98804.0,98794.0,0.00011516]
[1736130398606,0.04556,98796.0,98794.0,0.00011516]
[1736130399406,0.3608,98798.0,98794.0,0.00611516]
[1736130399803,0.001,98796.0,98794.0,0.00411516]
[1736130400808,0.001,98796.0,98794.0,0.00011516]
[1736130402011,0.3618,98798.0,98794.0,0.00011516]
[1736130402608,0.001,98796.0,98794.0,0.00011516]
[1736130403211,0.3618,98798.0,98794.0,0.00011516]
[1736130403915,0.001,98798.0,98794.0,0.00011516]
[1736130404710,0.045558,98800.0,98794.0,0.00011516]
[1736130404913,0.001,98796.0,98794.0,0.00011516]
[1736130405413,0.001,98798.0,98794.0,0.00011516]
[1736130406005,0.001,98796.0,98794.0,0.00011516]
[1736130407611,0.001,98798.0,98794.0,0.00011516]
[1736130408210,0.001,98796.0,98794.0,0.00011516]
[1736130408809,0.3608,98806.0,98794.0,0.00011516]
[1736130408810,0.001,98798.0,98794.0,0.00011516]
[1736130409113,0.001,98798.0,98797.0,0.045559]
[1736130409319,0.1205151,98819.0,98797.0,0.3608]
[1736130409624,0.1205151,98819.0,98809.0,0.045553]
[1736130410416,0.045548,98821.0,98809.0,0.045553]
[1736130410627,0.045548,98821.0,98810.0,0.09824727]
[1736130411426,0.045548,98821.0,98810.0,0.14380027]
[1736130411717,0.045549,98820.0,98811.0,0.045553]
[1736130412314,0.045551,98816.0,98811.0,0.045553]
[1736130414426,0.3608,98819.0,98810.0,0.09824727]
[1736130414619,0.3608,98819.0,98818.0,0.045549]
[1736130414821,0.001,98820.0,98818.0,0.045549]
[1736130415126,0.1205151,98825.0,98824.0,0.045547]
[1736130416625,0.04554,98839.0,98828.0,0.045545]
[1736130416827,0.04554,98839.0,98829.0,0.09824727]
[1736130417016,0.04554,98839.0,98831.0,0.045543]
[1736130417418,0.3608,98832.0,98823.0,0.045547]
[1736130417613,0.045547,98823.0,98822.0,0.3608]
[1736130417827,0.3608,98823.0,98810.0,0.045553]
[1736130418021,0.045549,98819.0,98810.0,0.09824727]
[1736130418220,0.045549,98819.0,98813.0,0.045551]
[1736130418421,0.006,98825.0,98810.0,0.1084487]
[1736130418623,0.006,98825.0,98811.0,0.655353]
[1736130418926,0.045547,98823.0,98811.0,0.6098]
[1736130419119,0.045547,98823.0,98815.0,0.045551]
[1736130419621,0.046547,98823.0,98815.0,0.045551]
[1736130420528,0.046547,98823.0,98811.0,0.249]
[1736130420529,0.047547,98823.0,98816.0,0.04555]
[1736130421222,0.046547,98823.0,98816.0,0.04555]
[1736130421429,0.004,98823.0,98811.0,0.249]
[1736130421729,0.003,98823.0,98821.0,0.045548]
[1736130421927,0.004,98823.0,98821.0,0.045548]
[1736130422429,0.001,98823.0,98821.0,0.045548]
[1736130422735,0.004,98823.0,98821.0,0.045548]
[1736130423428,0.003,98823.0,98821.0,0.045548]
[1736130424023,0.045542,98834.0,98818.0,0.3608]
[1736130424217,0.005,98823.0,98821.0,0.045548]
[1736130424420,0.007,98823.0,98821.0,0.045548]
[1736130425226,0.002,98823.0,98821.0,0.045548]
[1736130425731,0.007,98823.0,98821.0,0.045548]
[1736130426230,0.005,98823.0,98821.0,0.045548]
[1736130426626,0.045548,98822.0,98813.0,0.09824727]
[1736130427026,0.005,98823.0,98813.0,0.09824727]
[1736130427027,0.045548,98821.0,98813.0,0.09824727]
[1736130428029,0.045549,98820.0,98813.0,0.09824727]
[1736130428233,0.045551,98816.0,98810.0,0.3608]
[1736130428434,0.045551,98815.0,98810.0,0.3608]
[1736130431030,0.046551,98815.0,98810.0,0.3608]
[1736130431931,0.001,98815.0,98810.0,0.3608]
[1736130432138,0.001,98815.0,98813.0,0.045552]
[1736130433230,0.002,98815.0,98813.0,0.045552]
[1736130433738,0.1,98825.0,98813.0,0.045552]
[1736130433925,0.1,98825.0,98824.0,0.045547]
[1736130435137,0.106,98825.0,98824.0,0.045547]
[1736130436229,0.107,98825.0,98824.0,0.045547]
[1736130436725,0.106,98825.0,98824.0,0.045547]
[1736130436930,0.109,98825.0,98824.0,0.282047]
[1736130437129,0.109,98825.0,98824.0,0.29244389]
[1736130443430,0.109,98825.0,98824.0,0.05594389]
[1736130454345,0.109,98825.0,98824.0,0.29184815]
[1736130458850,0.109,98825.0,98824.0,0.01039689]
[1736130459047,0.109,98825.0,98822.0,0.29974946]
[1736130459241,0.5125,98824.0,98822.0,0.29974946]
[1736130459555,0.558047,98824.0,98822.0,0.29974946]
[1736130459749,0.045548,98822.0,98808.0,0.045554]
[1736130459937,0.045548,98822.0,98810.0,0.37103039]
[1736130460143,0.045548,98822.0,98810.0,0.3608]
[1736130460343,0.51302001,98824.0,98810.0,0.3608]
[1736130460344,0.406348,98821.0,98810.0,0.3608]
[1736130460846,0.406348,98821.0,98814.0,0.23997277]
[1736130461446,0.3608,98821.0,98814.0,0.23997277]
[1736130461754,0.3608,98819.0,98814.0,0.23997277]
[1736130461949,0.045551,98816.0,98814.0,0.23997277]
[1736130462148,0.3608,98819.0,98800.0,0.35725075]
[1736130462149,0.045555,98807.0,98800.0,0.35725075]
[1736130462452,0.045555,98807.0,98797.0,0.406359]
[1736130462453,0.3608,98805.0,98797.0,0.406359]
[1736130464156,0.3608,98805.0,98799.0,0.045558]
[1736130464853,0.3618,98805.0,98799.0,0.045558]
[1736130465252,0.45164588,98805.0,98799.0,0.047558]
[1736130465454,0.45164588,98805.0,98799.0,0.051558]
[1736130466554,0.3608,98805.0,98799.0,0.051558]
[1736130468256,0.09084588,98804.0,98799.0,0.051558]
[1736130469366,0.45164588,98805.0,98799.0,0.047558]
[1736130469555,0.45164588,98805.0,98799.0,0.051558]
[1736130470549,0.3608,98805.0,98799.0,0.051558]
[1736130471960,0.3608,98805.0,98799.0,0.049558]
[1736130472163,0.3608,98805.0,98799.0,0.051558]
[1736130478364,0.045556,98804.0,98799.0,0.051558]
[1736130478859,0.045558,98800.0,98799.0,0.006]
[1736130479461,0.2316,98804.0,98799.0,0.006]
[1736130479656,0.045558,98800.0,98799.0,0.006]
[1736130480859,0.045558,98800.0,98799.0,0.002]
[1736130481059,0.2316,98804.0,98799.0,0.006]
[1736130481263,0.045558,98800.0,98799.0,0.006]
[1736130482166,0.2316,98804.0,98794.0,0.00011516]
[1736130482360,0.40636,98795.0,98794.0,0.00011516]
[1736130483459,0.3608,98795.0,98770.0,0.09824727]
[1736130483659,0.406364,98787.0,98770.0,0.09824727]
[1736130483968,0.406364,98787.0,98779.0,0.045568]
[1736130484862,0.407364,98787.0,98786.0,0.2357]
[1736130485062,0.407364,98787.0,98786.0,0.24579634]
[1736130485258,0.407364,98787.0,98786.0,0.2357]
[1736130485458,0.045569,98776.0,98763.0,0.3608]
[1736130485664,0.045569,98776.0,98766.0,0.4327]
[1736130485868,0.3608,98778.0,98766.0,0.4327]
[1736130486055,0.045571,98771.0,98766.0,0.4327]
[1736130486371,0.3608,98778.0,98766.0,0.4327]
[1736130487272,0.001,98776.0,98766.0,0.4327]
[1736130487772,0.3608,98778.0,98766.0,0.4327]
[1736130487968,0.3608,98778.0,98768.0,0.045572]
[1736130487969,0.3618,98778.0,98768.0,0.045572]
[1736130488177,0.3618,98778.0,98775.0,0.045569]
[1736130488671,0.002,98776.0,98775.0,0.045569]
[1736130489568,0.001,98776.0,98775.0,0.045569]
[1736130490462,0.001,98778.0,98775.0,0.3608]
[1736130490665,0.09084588,98786.0,98779.0,0.045568]
[1736130490967,0.1205151,98791.0,98789.0,0.045563]
[1736130491161,0.1205151,98791.0,98790.0,0.2367]
[1736130491967,0.045558,98801.0,98790.0,0.2367]
[1736130492166,0.045558,98801.0,98794.0,0.3608]
[1736130492362,0.3608,98802.0,98794.0,0.3608]
[1736130492764,0.045558,98801.0,98794.0,0.3608]
[1736130493772,0.046558,98801.0,98794.0,0.3608]
[1736130494169,0.046558,98801.0,98795.0,0.2189]
[1736130494962,0.045559,98798.0,98795.0,0.2189]
[1736130495779,0.045559,98798.0,98795.0,0.2199]
[1736130495972,0.04556,98796.0,98795.0,0.2199]
[1736130497573,0.04556,98796.0,98795.0,0.2209]
[1736130497871,0.04556,98796.0,98795.0,0.002]
[1736130502578,0.40636,98796.0,98795.0,0.002]
[1736130503272,0.40636,98796.0,98771.0,0.280371]
[1736130503477,0.045567,98780.0,98771.0,0.280371]
[1736130503867,0.045569,98776.0,98771.0,0.280371]
[1736130504077,0.045569,98776.0,98770.0,0.30004069]
[1736130505480,0.045569,98776.0,98768.0,0.01002768]
[1736130505982,0.046569,98776.0,98775.0,0.3618]
[1736130506375,0.046569,98776.0,98775.0,0.3648]
[1736130509871,0.001,98776.0,98775.0,0.3648]
[1736130510077,0.12126204,98788.0,98783.0,0.045565]
[1736130510277,0.045565,98785.0,98783.0,0.3608]
[1736130512270,0.045565,98785.0,98783.0,0.3628]
[1736130516377,0.045565,98785.0,98783.0,0.002]
[1736130521182,0.045565,98785.0,98783.0,0.003]
[1736130521683,0.045565,98785.0,98783.0,0.001]
[1736130521684,0.16678762,98785.0,98783.0,0.001]
[1736130522786,0.045565,98785.0,98783.0,0.001]
[1736130524980,0.16678762,98785.0,98783.0,0.001]
[1736130527589,0.12122262,98784.0,98783.0,0.001]
[1736130528988,0.045565,98785.0,98783.0,0.001]
[1736130530092,0.045565,98784.0,98783.0,0.001]
[1736130530395,0.045565,98785.0,98768.0,0.00994805]
[1736130530396,0.045572,98769.0,98768.0,0.00994805]
[1736130530689,0.045572,98769.0,98767.0,0.24006713]
[1736130531586,0.046572,98769.0,98768.0,0.001]
[1736130532390,0.045569,98777.0,98770.0,0.045572]
[1736130532581,0.15148596,98786.0,98774.0,0.3608]
[1736130532582,0.045569,98776.0,98774.0,0.3608]
[1736130533885,0.046569,98776.0,98774.0,0.3618]
[1736130534293,0.046569,98776.0,98774.0,0.60186713]
[1736130535186,0.046569,98776.0,98774.0,0.60386713]
[1736130535584,0.046569,98776.0,98774.0,0.3638]
[1736130543890,0.1,98775.0,98774.0,0.3638]
[1736130545189,0.1,98775.0,98774.0,0.3618]
[1736130545397,0.1,98775.0,98774.0,0.3638]
[1736130545593,0.1,98775.0,98774.0,0.60386713]
[1736130545794,0.1,98775.0,98774.0,0.24306713]
[1736130546798,0.1,98775.0,98774.0,0.002]
[1736130547000,0.101,98775.0,98774.0,0.004]
[1736130547991,0.101,98775.0,98774.0,0.24406713]
[1736130550302,0.22235527,98775.0,98774.0,0.004]
[1736130551208,0.101,98775.0,98774.0,0.004]
[1736130551999,0.14657,98775.0,98774.0,0.3648]
[1736130552997,0.14657,98775.0,98774.0,0.004]
[1736130560995,0.14657,98775.0,98774.0,0.24462584]
[1736130563603,0.14657,98775.0,98774.0,0.004]
[1736130571621,0.14657,98775.0,98774.0,0.30404069]
[1736130574324,0.14657,98775.0,98774.0,0.5420945]
[1736130575624,0.14657,98775.0,98774.0,0.30404069]
[1736130575818,0.14657,98775.0,98774.0,0.004]
[1736130579838,0.14657,98775.0,98774.0,0.41037]
[1736130579839,0.101,98775.0,98774.0,0.41037]
[1736130580334,0.101,98775.0,98774.0,0.004]
[1736130582041,0.101,98775.0,98774.0,0.24461155]
[1736130585240,0.101,98775.0,98774.0,0.004]
[1736130591842,0.101,98775.0,98774.0,0.30404069]
[1736130592947,0.101,98775.0,98774.0,0.004]
[1736130593142,0.101,98775.0,98774.0,0.0139675]
[1736130596243,0.101,98775.0,98774.0,0.25597613]
[1736130597443,0.101,98775.0,98774.0,0.55661178]
[1736130598444,0.091,98775.0,98774.0,0.25597613]
[1736130599645,0.62149319,98787.0,98775.0,0.04557]
[1736130599840,0.62149319,98787.0,98786.0,0.3608]
[1736130600143,0.5,98787.0,98786.0,0.3608]
[1736130601349,0.5,98787.0,98786.0,0.406365]
[1736130601541,0.5,98787.0,98786.0,0.70675275]
[1736130602542,0.11285418,98787.0,98786.0,0.70675275]
[1736130602744,0.1,98800.0,98799.0,0.045559]
[1736130602945,0.1,98800.0,98799.0,0.406359]
[1736130604251,0.1,98800.0,98799.0,0.3608]
[1736130604745,0.102,98800.0,98799.0,0.37119541]
[1736130605454,0.102,98800.0,98799.0,0.61097472]
[1736130606154,0.107,98800.0,98799.0,0.61097472]
[1736130606842,0.107,98800.0,98799.0,0.37119541]
[1736130614149,0.107,98800.0,98799.0,0.3608]
[1736130614343,0.045559,98799.0,98798.0,0.17952931]
[1736130614549,0.3413,98800.0,98792.0,0.23977931]
[1736130614854,0.045561,98793.0,98792.0,0.23977931]
[1736130615351,0.045561,98793.0,98784.0,0.7657751]
[1736130615352,0.045563,98791.0,98784.0,0.4659547]
[1736130615555,0.045563,98791.0,98784.0,0.4653947]
[1736130615752,0.09838847,98794.0,98786.0,0.3608]
[1736130615948,0.045567,98782.0,98781.0,0.23977931]
[1736130617055,0.045562,98792.0,98781.0,0.003]
[1736130617255,0.3618,98793.0,98781.0,0.003]
[1736130617758,0.045567,98782.0,98781.0,0.003]
[1736130617953,0.045567,98782.0,98781.0,0.004]
[1736130618546,0.09071866,98791.0,98781.0,0.004]
[1736130618751,0.09071866,98791.0,98787.0,0.045564]
[1736130619655,0.2219,98792.0,98787.0,0.045564]
[1736130619849,0.2219,98792.0,98782.0,0.4517]
[1736130620052,0.045563,98791.0,98782.0,0.4517]
[1736130620251,0.32028847,98792.0,98782.0,0.4517]
[1736130620459,0.32028847,98792.0,98781.0,0.001]
[1736130620460,0.045566,98784.0,98781.0,0.001]
[1736130620656,0.045566,98783.0,98781.0,0.001]
[1736130621047,0.32028847,98792.0,98778.0,0.01034665]
[1736130621358,0.045567,98781.0,98777.0,0.3608]
[1736130621961,0.32028847,98792.0,98781.0,0.001]
[1736130622958,0.045567,98782.0,98781.0,0.001]
[1736130623554,0.045568,98780.0,98777.0,0.37574367]
[1736130623753,0.32028847,98792.0,98777.0,0.3658]
[1736130623954,0.045568,98778.0,98777.0,0.3658]
[1736130624361,0.045568,98778.0,98777.0,0.3638]
[1736130625060,0.045568,98778.0,98777.0,0.3608]
[1736130625250,0.045568,98778.0,98777.0,0.3628]
[1736130626465,0.045568,98778.0,98777.0,0.3658]
[1736130626759,0.09838847,98790.0,98777.0,0.3658]
[1736130627865,0.045568,98779.0,98777.0,0.3658]
[1736130628060,0.045568,98779.0,98777.0,0.3638]
[1736130628262,0.045568,98779.0,98777.0,0.005]
[1736130629666,0.045568,98779.0,98777.0,0.003]
[1736130629962,0.045568,98779.0,98777.0,0.005]
[1736130631764,0.05586011,98779.0,98777.0,0.005]
[1736130631964,0.045568,98779.0,98777.0,0.005]
[1736130637073,0.045568,98779.0,98778.0,0.3608]
[1736130637661,0.045568,98779.0,98777.0,0.005]
[1736130638266,0.045568,98779.0,98778.0,0.001]
[1736130638656,0.045568,98779.0,98778.0,0.004]
[1736130639374,0.045568,98779.0,98778.0,0.001]
[1736130640073,0.045576,98761.0,98760.0,0.23977931]
[1736130640464,0.3608,98766.0,98755.0,0.23977931]
[1736130640665,0.045579,98756.0,98755.0,0.23977931]
[1736130641681,0.045579,98756.0,98755.0,0.24277931]
[1736130642175,0.04558,98752.0,98745.0,0.23977931]
[1736130643078,0.001,98756.0,98745.0,0.23977931]
[1736130643270,0.001,98756.0,98752.0,0.2352]
[1736130643576,0.04558,98753.0,98745.0,0.23977931]
[1736130643877,0.04558,98753.0,98751.0,0.3638]
[1736130644171,0.04558,98753.0,98751.0,0.003]
[1736130644371,0.04558,98753.0,98746.0,0.23977931]
[1736130644372,0.001,98752.0,98746.0,0.23977931]
[1736130644575,0.045583,98747.0,98746.0,0.23977931]
[1736130645163,0.045586,98740.0,98739.0,0.2998204]
[1736130645366,0.406386,98740.0,98739.0,0.2998204]
[1736130645567,0.406386,98740.0,98739.0,0.01583553]
[1736130646770,0.406386,98740.0,98739.0,5.3e-07]
[1736130647077,0.406386,98740.0,98729.0,0.3604653]
[1736130647078,0.045591,98730.0,98729.0,0.3604653]
[1736130647269,0.045591,98730.0,98717.0,4e-05]
[1736130647270,0.045596,98718.0,98717.0,4e-05]
[1736130648272,0.22088166,98740.0,98717.0,4e-05]
[1736130648466,0.04559,98732.0,98726.0,0.406392]
[1736130648667,0.16708319,98732.0,98727.0,0.4607]
[1736130648874,0.12149319,98732.0,98727.0,0.4607]
[1736130649074,0.12149319,98732.0,98730.0,0.04559]
[1736130649470,0.15148596,98740.0,98727.0,0.4607]
[1736130649471,0.15148596,98740.0,98731.0,0.3608]
[1736130649771,0.15148596,98740.0,98739.0,0.406386]
[1736130649979,0.045584,98745.0,98740.0,0.045586]
[1736130650272,0.045584,98745.0,98740.0,0.280886]
[1736130651469,0.0906603,98759.0,98740.0,0.280886]
[1736130651669,0.045581,98751.0,98740.0,0.38027447]
[1736130651873,0.045582,98749.0,98740.0,0.38027447]
[1736130652075,0.045583,98748.0,98740.0,0.38027447]
[1736130652975,0.045583,98748.0,98740.0,0.37927447]
[1736130653168,0.045583,98748.0,98740.0,0.33468847]
[1736130653370,0.0906603,98761.0,98747.0,0.3608]
[1736130653675,0.0906603,98761.0,98756.0,0.3608]
[1736130653876,0.0906603,98761.0,98757.0,0.2388]
[1736130654777,0.0916603,98761.0,98757.0,0.2388]
[1736130654974,0.001,98761.0,98757.0,0.2388]
[1736130655280,0.006,98761.0,98757.0,0.2388]
[1736130656384,0.007,98761.0,98757.0,0.2388]
[1736130657778,0.045578,98759.0,98757.0,0.2388]
[1736130659479,0.047578,98759.0,98757.0,0.2388]
[1736130659988,0.052578,98759.0,98757.0,0.2388]
[1736130660181,0.007,98759.0,98757.0,0.2388]
[1736130667387,0.007,98759.0,98758.0,0.045577]
[1736130668482,0.002,98759.0,98758.0,0.045577]
[1736130668695,0.008,98759.0,98758.0,0.268377]
[1736130669489,0.006,98759.0,98758.0,0.268377]
[1736130669688,0.009,98759.0,98758.0,0.268377]
[1736130670788,0.009,98759.0,98758.0,0.2228]
[1736130674986,0.009,98759.0,98758.0,0.268378]
[1736130679592,0.47999847,98762.0,98761.0,0.045576]
[1736130679793,0.47999847,98762.0,98761.0,0.406376]
[1736130681507,0.48299847,98762.0,98761.0,0.406376]
[1736130681696,0.48899847,98762.0,98761.0,0.407376]
[1736130684711,0.48599847,98762.0,98761.0,0.407376]
[1736130684904,0.48799847,98762.0,98761.0,0.407376]
[1736130685611,0.48599847,98762.0,98761.0,0.406376]
[1736130693602,0.48199847,98762.0,98761.0,0.406376]
[1736130693814,0.48499847,98762.0,98761.0,0.406376]
[1736130694518,0.48399847,98762.0,98761.0,0.406376]
[1736130695215,0.48299847,98762.0,98761.0,0.406376]
[1736130695517,0.48399847,98762.0,98761.0,0.406376]
[1736130695718,0.48299847,98762.0,98761.0,0.406376]
[1736130700420,0.0906603,98784.0,98783.0,0.045566]
[1736130700613,0.0906603,98784.0,98783.0,0.406366]
[1736130701010,0.0906603,98785.0,98783.0,0.406366]
[1736130701813,0.002,98784.0,98783.0,0.406366]
[1736130702419,0.0936603,98785.0,98783.0,0.406366]
[1736130702618,0.003,98785.0,98783.0,0.406366]
[1736130702821,0.003,98785.0,98783.0,0.41650258]
[1736130703016,0.002,98784.0,98783.0,0.41650258]
[1736130703820,0.003,98784.0,98783.0,0.41650258]
[1736130705107,0.001,98784.0,98783.0,0.41650258]
[1736130705308,0.05362442,98787.0,98786.0,0.045565]
[1736130705524,0.0906603,98798.0,98797.0,0.04556]
[1736130705721,0.1,98800.0,98797.0,0.3608]
[1736130705923,0.1,98800.0,98799.0,0.406359]
[1736130707019,0.103,98800.0,98799.0,0.406359]
[1736130708322,0.104,98800.0,98799.0,0.406359]
[1736130708519,0.101,98800.0,98799.0,0.41673584]
[1736130708723,0.103,98800.0,98799.0,0.41673584]
[1736130716625,0.101,98800.0,98799.0,0.41673584]
[1736130716834,0.102,98800.0,98799.0,0.41673584]
[1736130717030,0.45936411,98812.0,98811.0,0.045553]
[1736130717327,0.43114694,98812.0,98811.0,0.406353]
[1736130720228,0.43114694,98812.0,98811.0,0.41655355]
[1736130721436,0.216,98837.0,98824.0,0.045547]
[1736130721729,0.216,98837.0,98824.0,0.406347]
[1736130722133,0.0906603,98847.0,98824.0,0.406347]
[1736130722134,0.04937837,98825.0,98824.0,0.905187]
[1736130722330,0.00551553,98825.0,98824.0,0.905187]
[1736130722732,0.00651553,98825.0,98824.0,0.905187]
[1736130723225,0.00551553,98825.0,98824.0,0.905187]
[1736130723425,0.00551553,98825.0,98824.0,0.908187]
[1736130724131,0.00551553,98825.0,98824.0,0.91812584]
[1736130724526,0.00551553,98825.0,98824.0,0.86264]
[1736130724723,0.00551553,98825.0,98824.0,0.86364]
[1736130724926,0.00551553,98825.0,98824.0,0.86064]
[1736130725135,0.00551553,98825.0,98824.0,0.86364]
[1736130745363,0.00551553,98825.0,98824.0,0.3648]
[1736130756667,0.24101553,98825.0,98824.0,0.3648]
[1736130762563,0.00551553,98825.0,98824.0,0.3648]
[1736130767068,0.00551553,98825.0,98824.0,0.72380437]
[1736130767970,0.00110526,98825.0,98824.0,0.72380437]
[1736130768175,0.1,98850.0,98826.0,0.045546]
[1736130768377,0.1,98850.0,98849.0,0.3608]
[1736130769686,0.1,98850.0,98849.0,0.406336]
[1736130769687,0.101,98850.0,98849.0,0.406336]
[1736130771171,0.102,98850.0,98849.0,0.406336]
[1736130771982,0.105,98850.0,98849.0,0.406336]
[1736130773776,0.105,98850.0,98849.0,0.41634155]
[1736130775984,0.31478031,98871.0,98849.0,0.41634155]
[1736130776278,0.3142603,98871.0,98870.0,0.3608]
[1736130776679,0.2236,98871.0,98870.0,0.3608]
[1736130777178,0.00151766,98876.0,98870.0,0.3608]
[1736130778376,0.2207,98883.0,98873.0,0.045525]
[1736130778581,0.2218,98888.0,98873.0,0.045525]
[1736130779376,0.102,98875.0,98873.0,0.045525]
[1736130779778,0.102,98875.0,98870.0,0.37215394]
[1736130779779,0.1,98875.0,98870.0,0.37215394]
[1736130779980,0.103,98875.0,98870.0,0.37215394]
[1736130780283,0.103,98875.0,98874.0,0.045524]
[1736130780510,0.105,98875.0,98874.0,0.045524]
[1736130781382,0.104,98875.0,98874.0,0.045524]
[1736130781782,0.103,98875.0,98874.0,0.045524]
[1736130782380,0.101,98875.0,98874.0,0.045524]
[1736130782686,0.104,98875.0,98874.0,0.045524]
[1736130783187,0.103,98875.0,98874.0,0.045524]
[1736130783488,0.105,98875.0,98874.0,0.045524]
[1736130786092,0.2,98900.0,98874.0,0.41386218]
[1736130786285,0.2,98900.0,98899.0,0.406313]
[1736130788290,0.202,98900.0,98899.0,0.406313]
[1736130788887,0.205,98900.0,98899.0,0.406313]
[1736130789377,0.202,98900.0,98899.0,0.406313]
[1736130789582,0.205,98900.0,98899.0,0.406313]
[1736130790390,0.205,98900.0,98899.0,0.41640983]
[1736130793694,0.205,98900.0,98899.0,0.37089683]
[1736130794589,0.205,98900.0,98890.0,0.3608]
[1736130794786,0.66418847,98900.0,98890.0,0.3608]
[1736130794987,0.406317,98891.0,98874.0,0.045524]
[1736130795399,0.406317,98891.0,98873.0,0.3608]
[1736130795892,0.406317,98891.0,98880.0,0.09838847]
[1736130796093,0.3608,98891.0,98880.0,0.14390947]
[1736130796687,0.3618,98891.0,98880.0,0.14390947]
[1736130796891,0.001,98891.0,98885.0,0.3608]
[1736130797190,0.5608,98900.0,98885.0,0.3608]
[1736130797395,0.5608,98900.0,98890.0,0.09838847]
[1736130797588,0.5608,98900.0,98892.0,0.045516]
[1736130797783,0.2203,98899.0,98892.0,0.045516]
[1736130798195,0.2203,98899.0,98885.0,0.001]
[1736130798392,0.265813,98899.0,98885.0,0.046519]
[1736130798594,0.3608,98892.0,98885.0,0.046519]
[1736130798795,0.3608,98892.0,98885.0,0.048519]